bitfinex-derivatives/quotes_SOLF0:USTF0_20250310
["timestamp","ask_amount","ask_price","bid_price","bid_amount"]
[1741624602128,8.2837,120.77,120.73,8.5062]
[1741624602530,0.06016781,120.76,120.74,0.05925278]
[1741624604438,0.06016781,120.76,120.74,8.34445278]
[1741624605128,8.34476781,120.76,120.74,0.05925278]
[1741624605334,0.06016781,120.76,120.74,0.05925278]
[1741624605831,8.2847,120.75,120.74,0.05925278]
[1741624608339,4.1308,120.75,120.69,4.3587]
[1741624608636,4.1308,120.75,120.66,3.9993]
[1741624608837,8.2886,120.7,120.66,3.9993]
[1741624609030,8.4858,120.75,120.66,3.9993]
[1741624609236,8.4858,120.75,120.68,8.2892]
[1741624609435,0.06310177,120.72,120.68,8.2892]
[1741624609842,0.06310177,120.72,120.69,8.2881]
[1741624610042,0.06310177,120.72,120.66,39.53112525]
[1741624610340,0.06310177,120.72,120.68,8.2891]
[1741624610550,0.06310177,120.72,120.66,3.9993]
[1741624611143,0.06310177,120.72,120.67,62.0]
[1741624613037,0.06310177,120.72,120.67,97.53182525]
[1741624613241,0.06310177,120.72,120.71,8.2874]
[1741624613544,269.41182525,120.8,120.69,75.41182525]
[1741624613745,12.3497,120.79,120.75,8.2843]
[1741624613948,4.0671,120.79,120.75,8.2843]
[1741624614150,4.0671,120.79,120.72,3.9767]
[1741624614349,8.2822,120.79,120.76,8.2837]
[1741624614550,0.05581005,120.77,120.76,8.2837]
[1741624614749,4.0993,120.83,120.74,0.05696949]
[1741624615047,4.0993,120.83,120.75,35.53182525]
[1741624615248,4.2578,120.84,120.75,35.53182525]
[1741624615449,4.2578,120.84,120.77,35.53182525]
[1741624615645,4.2578,120.84,120.78,39.88]
[1741624615851,8.33626732,120.82,120.79,8.3390631]
[1741624616051,0.05596732,120.82,120.79,0.0572631]
[1741624617748,8.33616732,120.82,120.79,0.0572631]
[1741624617944,0.05596732,120.82,120.79,0.0572631]
[1741624618150,0.05596732,120.82,120.79,39.9172631]
[1741624618749,0.05596732,120.82,120.8,8.2808]
[1741624618950,0.05596732,120.82,120.79,39.9172631]
[1741624619753,0.05596732,120.82,120.8,8.2807]
[1741624619953,0.05596732,120.82,120.79,39.9172631]
[1741624620351,0.05596732,120.82,120.8,62.0]
[1741624620557,4.0993,120.87,120.8,62.0]
[1741624620753,4.3396,120.88,120.8,62.0]
[1741624621054,4.3396,120.88,120.82,8.2793]
[1741624621259,4.3396,120.88,120.8,62.0]
[1741624621662,4.159,120.9,120.83,0.06040082]
[1741624621960,4.159,120.9,120.83,39.92040082]
[1741624622958,0.05900457,120.88,120.83,39.92040082]
[1741624623159,174.27064569,120.98,120.86,35.53182525]
[1741624623358,8.3524,120.97,120.88,35.53182525]
[1741624623552,8.2713,120.95,120.88,35.53182525]
[1741624623750,8.3524,120.97,120.88,35.53182525]
[1741624623751,8.3524,120.97,120.88,37.33132525]
[1741624623951,35.53182525,120.94,120.84,43.816]
[1741624624152,8.2762,120.88,120.84,43.816]
[1741624624353,0.0620499,120.9,120.88,0.05785809]
[1741624624760,8.2756,120.89,120.84,43.816]
[1741624624962,0.05705995,120.9,120.88,0.06275446]
[1741624625163,0.05705995,120.9,120.84,87.62602525]
[1741624625364,0.05705995,120.9,120.84,43.816]
[1741624625760,0.05705995,120.9,120.84,39.84]
[1741624625954,0.05705995,120.9,120.86,0.06212542]
[1741624626155,8.2764,120.87,120.86,0.06212542]
[1741624626359,35.53182525,120.88,120.79,39.82]
[1741624626764,8.2799,120.82,120.77,49.82662525]
[1741624627060,229.53182525,120.9,120.79,39.82]
[1741624627258,8.5198,120.93,120.83,35.53182525]
[1741624627458,44.05162525,120.93,120.84,39.82]
[1741624627658,0.05588893,120.86,120.84,39.82]
[1741624627856,8.2768,120.87,120.84,39.82]
[1741624628058,0.05720869,120.86,120.84,39.88156688]
[1741624628258,4.0209,120.92,120.84,39.82]
[1741624628465,0.05703687,120.86,120.84,39.88359923]
[1741624628667,75.35182525,120.91,120.84,39.82]
[1741624628863,8.2778,120.85,120.84,0.06240598]
[1741624629165,75.35182525,120.87,120.77,44.0323]
[1741624629362,8.1465,120.86,120.78,62.0]
[1741624629960,8.281,120.81,120.78,62.0]
[1741624630155,0.06292747,120.83,120.81,0.06042719]
[1741624630566,0.06292747,120.83,120.81,39.88237886]
[1741624631062,0.06292747,120.83,120.82,8.2799]
[1741624631256,4.1256,120.89,120.81,75.41420411]
[1741624631456,4.1256,120.89,120.81,39.82]
[1741624631663,8.2789,120.84,120.81,39.82]
[1741624631865,39.65742525,120.89,120.81,39.82]
[1741624632060,4.1256,120.89,120.77,4.2123]
[1741624632260,43.7999,120.88,120.77,4.2123]
[1741624632458,0.05636669,120.84,120.82,0.05244006]
[1741624633268,0.05636669,120.84,120.83,8.2792]
[1741624633464,4.0713,120.91,120.82,0.05244006]
[1741624633765,8.2741,120.91,120.87,8.2759]
[1741624634157,8.2599,120.94,120.86,39.82]
[1741624634356,4.238,120.94,120.87,97.53182525]
[1741624634564,4.238,120.94,120.87,99.32742525]
[1741624634766,0.06090403,120.92,120.89,8.33460907]
[1741624634970,0.06090403,120.92,120.89,0.06000907]
[1741624635269,8.2744,120.9,120.89,0.06000907]
[1741624635569,0.06090403,120.92,120.89,0.06000907]
[1741624635961,8.2744,120.9,120.89,0.06000907]
[1741624636361,0.06090403,120.92,120.89,0.06000907]
[1741624636763,39.86090403,120.92,120.89,0.06000907]
[1741624636971,39.64452525,120.91,120.83,39.8]
[1741624637171,43.86722525,120.91,120.83,39.8]
[1741624637473,8.3354,120.91,120.83,39.8]
[1741624637768,8.3354,120.91,120.83,75.33182525]
[1741624637971,8.2747,120.9,120.84,62.0]
[1741624638171,8.4607,120.94,120.86,0.05297585]
[1741624638477,4.238,120.94,120.87,75.33182525]
[1741624639472,0.05411659,120.92,120.89,0.05983705]
[1741624640071,8.2743,120.91,120.89,0.05983705]
[1741624640277,0.05411659,120.92,120.89,0.05983705]
[1741624640777,8.2744,120.9,120.89,0.05983705]
[1741624640973,0.05411659,120.92,120.89,0.05983705]
[1741624641173,8.32751659,120.92,120.89,0.05983705]
[1741624641377,0.05411659,120.92,120.89,62.05983705]
[1741624642278,8.2744,120.9,120.89,0.05983705]
[1741624642680,0.05411659,120.92,120.89,0.05983705]
[1741624642882,8.2741,120.91,120.89,0.05983705]
[1741624643273,8.2744,120.9,120.89,0.05983705]
[1741624643682,0.05411659,120.92,120.89,8.33483705]
[1741624643880,8.32761659,120.92,120.89,8.33483705]
[1741624644077,8.32761659,120.92,120.89,0.05983705]
[1741624644284,0.05411659,120.92,120.89,39.83983705]
[1741624644586,8.32741659,120.92,120.89,39.83983705]
[1741624644785,8.32741659,120.92,120.89,48.11463705]
[1741624645080,0.05411659,120.92,120.89,39.83983705]
[1741624645482,0.05411659,120.92,120.89,0.05983705]
[1741624645683,8.2744,120.9,120.89,0.05983705]
[1741624646284,8.2782,120.85,120.82,43.9671]
[1741624646476,8.2782,120.85,120.82,4.1871]
[1741624646682,39.78,120.9,120.82,43.9671]
[1741624646880,8.2784,120.85,120.82,43.9671]
[1741624647489,8.33973422,120.85,120.82,44.02463891]
[1741624647679,0.06133422,120.85,120.82,44.02463891]
[1741624648285,0.06133422,120.85,120.83,62.0]
[1741624649184,0.06133422,120.85,120.83,70.2787]
[1741624649481,4.3346,120.91,120.83,97.53182525]
[1741624649681,16.5392,120.98,120.88,8.2752]
[1741624649682,8.546,120.94,120.88,8.2752]
[1741624650188,8.2734,120.92,120.88,8.2752]
[1741624650387,4.238,120.94,120.87,75.29182525]
[1741624650577,4.238,120.94,120.89,0.06301659]
[1741624650778,0.05724513,120.91,120.89,0.06301659]
[1741624651182,8.2744,120.9,120.89,0.06301659]
[1741624652288,8.33124513,120.91,120.89,0.06301659]
[1741624652678,0.05724513,120.91,120.89,0.06301659]
[1741624652881,8.2744,120.9,120.89,0.06301659]
[1741624653078,0.05724513,120.91,120.89,0.06301659]
[1741624654896,0.05724513,120.91,120.89,8.33801659]
[1741624655489,0.05724513,120.91,120.89,0.06301659]
[1741624655990,8.2744,120.9,120.89,0.06301659]
[1741624657283,8.2775,120.86,120.84,62.0]
[1741624657483,4.3696,120.9,120.84,62.0]
[1741624658190,39.74,120.89,120.79,81.37782525]
[1741624658488,0.05802127,120.85,120.83,0.05824371]
[1741624658883,8.2785,120.84,120.83,0.05824371]
[1741624660393,8.2785,120.84,120.83,4.371e-05]
[1741624660892,52.31412525,120.84,120.83,4.371e-05]
[1741624661289,46.51562525,120.84,120.75,228.34780717]
[1741624661493,44.03562525,120.84,120.75,228.34780717]
[1741624661890,44.03562525,120.84,120.73,44.0317]
[1741624662095,44.03562525,120.84,120.73,4.2917]
[1741624662289,8.2831,120.78,120.77,0.06308411]
[1741624662490,0.05509492,120.8,120.77,0.06308411]
[1741624662903,0.05509492,120.8,120.78,8.2822]
[1741624663303,0.05509492,120.8,120.77,0.06308411]
[1741624663510,8.2824,120.79,120.77,0.06308411]
[1741624663709,0.05509492,120.8,120.77,0.06308411]
[1741624663902,0.05509492,120.8,120.78,8.2823]
[1741624664300,0.05509492,120.8,120.78,62.0]
[1741624664704,8.33639492,120.8,120.78,62.0]
[1741624664904,0.05509492,120.8,120.78,62.0]
[1741624665811,8.2819,120.79,120.78,62.0]
[1741624666199,8.2819,120.79,120.77,0.06308411]
[1741624666200,0.05509492,120.8,120.77,0.06308411]
[1741624666805,8.2826,120.78,120.77,0.06308411]
[1741624668009,35.58692017,120.8,120.71,39.74]
[1741624668211,8.2852,120.75,120.71,39.74]
[1741624668411,35.53182525,120.8,120.71,39.74]
[1741624668908,35.53182525,120.8,120.7,14.1121]
[1741624669105,0.06006001,120.76,120.74,0.0530558]
[1741624669305,8.2871,120.72,120.69,62.0]
[1741624669505,48.0025,120.77,120.7,8.2877]
[1741624669710,48.0025,120.77,120.68,131.53820831]
[1741624669903,8.285,120.75,120.68,131.53820831]
[1741624670106,48.0025,120.77,120.72,8.2865]
[1741624670306,48.0025,120.77,120.68,39.74]
[1741624670517,8.2857,120.74,120.73,0.05275147]
[1741624671409,0.0622212,120.76,120.73,0.05275147]
[1741624673105,8.2854,120.74,120.73,0.05275147]
[1741624675511,75.35404645,120.76,120.68,39.76]
[1741624675703,75.29182525,120.76,120.68,39.76]
[1741624675909,75.29182525,120.76,120.68,48.0489]
[1741624676209,75.29182525,120.76,120.68,8.2889]
[1741624676411,75.29182525,120.76,120.67,12.2548]
[1741624676616,35.53182525,120.73,120.64,39.74]
[1741624676816,0.06290266,120.73,120.64,79.60602525]
[1741624677005,35.53182525,120.75,120.64,79.60602525]
[1741624677210,0.06068622,120.7,120.64,79.60602525]
[1741624677709,8.2888,120.69,120.66,8.2904]
[1741624678113,8.2888,120.69,120.64,79.60602525]
[1741624678313,8.34918622,120.7,120.67,8.2898]
[1741624678512,8.34918622,120.7,120.68,62.0]
[1741624679817,8.34918622,120.7,120.68,70.2894]
[1741624680010,8.34918622,120.7,120.68,62.0]
[1741624680207,8.2888,120.69,120.68,62.0]
[1741624680619,8.2888,120.69,120.66,48.0504]
[1741624680916,8.2888,120.69,120.66,39.76]
[1741624681112,8.2888,120.69,120.66,48.0504]
[1741624681316,8.2897,120.68,120.66,39.76]
[1741624681517,0.06068622,120.7,120.65,39.76]
[1741624681710,8.2895,120.68,120.66,8.2905]
[1741624681914,4.2965,120.72,120.66,8.2905]
[1741624682116,0.05877214,120.68,120.67,8.2902]
[1741624682319,8.2884,120.7,120.65,39.76]
[1741624682519,0.05333204,120.69,120.65,39.76]
[1741624682814,8.34243204,120.69,120.66,8.2905]
[1741624683216,0.05333204,120.69,120.66,8.2905]
[1741624683418,8.34243204,120.69,120.67,8.2901]
[1741624683617,8.34243204,120.69,120.67,70.2901]
[1741624683925,0.05333204,120.69,120.67,62.0]
[1741624684519,0.05333204,120.69,120.68,8.2895]
[1741624684722,321.2425,120.77,120.67,62.0]
[1741624684920,325.2472,120.77,120.67,62.0]
[1741624685221,12.2672,120.77,120.68,35.53182525]
[1741624685417,12.2672,120.77,120.69,39.74]
[1741624685724,0.06113311,120.74,120.72,0.05333204]
[1741624686923,8.286,120.73,120.72,0.05333204]
[1741624687118,0.06113311,120.74,120.72,0.05333204]
[1741624687522,8.34683311,120.74,120.72,0.05333204]
[1741624687728,0.06113311,120.74,120.72,0.05333204]
[1741624688127,8.286,120.73,120.72,0.05333204]
[1741624688927,0.06113311,120.74,120.72,0.05333204]
[1741624689528,8.286,120.73,120.72,0.05333204]
[1741624689829,0.06113311,120.74,120.67,101.74]
[1741624690025,8.2891,120.69,120.66,8.2905]
[1741624690531,39.74,120.71,120.63,4.1576]
[1741624690723,39.74,120.71,120.63,39.74]
[1741624690922,0.06012718,120.68,120.63,39.74]
[1741624691523,0.06012718,120.68,120.61,8.1095]
[1741624691823,0.06012718,120.68,120.61,12.3206]
[1741624692028,0.06012718,120.68,120.6,39.74]
[1741624692229,8.2931,120.63,120.59,8.2952]
[1741624692540,0.0572333,120.65,120.57,47.9694]
[1741624692831,35.53182525,120.66,120.57,43.8865]
[1741624693025,0.05761143,120.62,120.58,62.0]
[1741624693225,0.05761143,120.62,120.56,91.79820831]
[1741624693417,0.05761143,120.62,120.57,1.48424563]
[1741624694030,0.05761143,120.62,120.54,39.56512525]
[1741624694332,35.53182525,120.62,120.55,1.48425163]
[1741624694531,0.0532529,120.59,120.53,37.01607688]
[1741624694727,0.0532529,120.59,120.57,8.2967]
[1741624694924,0.0532529,120.59,120.55,39.74]
[1741624695126,0.0532529,120.59,120.56,1.48434845]
[1741624695529,0.0532529,120.59,120.55,75.27182525]
[1741624695731,0.0532529,120.59,120.56,1.48437509]
[1741624695931,0.0532529,120.59,120.58,8.2964]
[1741624696128,0.0532529,120.59,120.58,70.2964]
[1741624696730,0.0532529,120.59,120.58,62.0]
[1741624697327,0.0532529,120.59,120.58,70.2964]
[1741624697729,0.0532529,120.59,120.58,62.0]
[1741624698330,0.0532529,120.59,120.56,8.2976]
[1741624698529,0.0532529,120.59,120.55,39.74]
[1741624698730,0.0532529,120.59,120.56,1.48438729]
[1741624698934,0.0532529,120.59,120.57,8.2967]
[1741624699530,0.0532529,120.59,120.56,8.2974]
[1741624699931,0.0532529,120.59,120.55,39.74]
[1741624700134,0.0532529,120.59,120.56,8.2973]
[1741624700434,0.0532529,120.59,120.55,39.74]
[1741624700635,0.0532529,120.59,120.57,8.2966]
[1741624701434,0.0532529,120.59,120.58,8.2964]
[1741624701635,0.0532529,120.59,120.56,62.0]
[1741624702829,0.0532529,120.59,120.57,8.2965]
[1741624703029,0.0532529,120.59,120.56,62.0]
[1741624703335,0.0532529,120.59,120.57,8.2966]
[1741624703830,0.0532529,120.59,120.58,8.2964]
[1741624706334,348.63182525,120.68,120.63,8.2928]
[1741624706529,4.2949,120.67,120.58,39.74852525]
[1741624706929,4.2949,120.67,120.6,35.53182525]
[1741624707125,4.2949,120.67,120.61,39.74]
[1741624707326,0.05363917,120.65,120.62,0.05264139]
[1741624708337,0.05363917,120.65,120.64,8.2922]
[1741624709032,0.05363917,120.65,120.62,0.05264139]
[1741624709426,8.2922,120.64,120.62,0.05264139]
[1741624709628,0.05363917,120.65,120.62,0.05264139]
[1741624710526,0.05363917,120.65,120.63,8.2926]
[1741624710730,0.05363917,120.65,120.62,0.05264139]
[1741624711331,0.05363917,120.65,120.62,4.01724139]
[1741624711635,0.05363917,120.65,120.64,8.2922]
[1741624712136,4.3704,120.72,120.69,8.2885]
[1741624712631,4.0484,120.74,120.66,39.72]
[1741624713037,4.0484,120.74,120.66,75.25182525]
[1741624713234,4.185,120.75,120.67,62.0]
[1741624713441,0.06127455,120.71,120.69,0.05867097]
[1741624713637,0.06127455,120.71,120.7,48.0076]
[1741624714036,0.06127455,120.71,120.7,39.72]
[1741624715740,0.06127455,120.71,120.69,0.05867097]
[1741624716236,8.34897455,120.71,120.69,0.05867097]
[1741624716439,0.06127455,120.71,120.69,0.05867097]
[1741624717239,8.34907455,120.71,120.69,0.05867097]
[1741624717433,0.06127455,120.71,120.69,0.05867097]
[1741624717833,8.2881,120.7,120.69,0.05867097]
[1741624719240,8.34897455,120.71,120.69,0.05867097]
[1741624720245,8.2881,120.7,120.69,0.05867097]
[1741624720842,0.06127455,120.71,120.69,39.73867097]
[1741624722147,0.06127455,120.71,120.69,0.05867097]
[1741624724143,0.06127455,120.71,120.7,8.2881]
[1741624726347,4.1687,120.77,120.72,8.2862]
[1741624726752,8.2849,120.75,120.72,8.2862]
[1741624726950,4.1687,120.77,120.71,39.66]
[1741624727252,8.2847,120.75,120.71,39.66]
[1741624727455,0.05474405,120.75,120.73,0.05480224]
[1741624727648,0.05474405,120.75,120.73,8.34050224]
[1741624728356,8.2854,120.74,120.73,0.05480224]
[1741624729854,8.2875,120.71,120.67,4.3316]
[1741624730050,8.2875,120.71,120.68,8.2892]
[1741624730249,35.53182525,120.74,120.66,101.66]
[1741624730446,39.52472525,120.74,120.66,62.0]
[1741624730750,39.52472525,120.74,120.66,70.2905]
[1741624730950,39.52472525,120.74,120.66,62.0]
[1741624730951,0.05761099,120.71,120.66,62.0]
[1741624731152,0.05761099,120.71,120.69,0.06238537]
[1741624731452,8.34541099,120.71,120.69,0.06238537]
[1741624731653,8.34541099,120.71,120.69,8.35068537]
[1741624731654,0.05761099,120.71,120.69,8.35068537]
[1741624732252,0.05761099,120.71,120.69,0.06238537]
[1741624733953,8.34541099,120.71,120.69,0.06238537]
[1741624734154,0.05761099,120.71,120.69,0.06238537]
[1741624735756,8.2881,120.7,120.69,0.06238537]
[1741624736259,0.05761099,120.71,120.69,0.06238537]
[1741624736658,0.05761099,120.71,120.69,8.35098537]
[1741624737159,0.05761099,120.71,120.69,0.06238537]
[1741624737660,8.34511099,120.71,120.69,0.06238537]
[1741624737953,0.05761099,120.71,120.69,0.06238537]
[1741624738151,8.2881,120.7,120.69,0.06238537]
[1741624738848,8.2881,120.7,120.69,8.537e-05]
[1741624739052,12.5605,120.7,120.69,8.537e-05]
[1741624739755,16.7255,120.7,120.69,8.537e-05]
[1741624741461,12.5605,120.7,120.69,8.537e-05]
[1741624741665,8.2881,120.7,120.69,8.537e-05]
[1741624742855,0.05761099,120.71,120.69,8.537e-05]
[1741624743056,0.05761099,120.71,120.7,8.2881]
[1741624743458,4.2562,120.78,120.7,24.72891345]
[1741624743659,48.6276078,120.8,120.75,22.24891345]
[1741624743857,44.2708078,120.8,120.77,22.24891345]
[1741624744462,44.2708078,120.8,120.77,0.05415092]
[1741624744663,44.32518837,120.8,120.77,0.05415092]
[1741624745565,8.33628057,120.8,120.77,0.05415092]
[1741624745767,0.05438057,120.8,120.77,0.05415092]
[1741624746068,8.2826,120.78,120.77,0.05415092]
[1741624746567,0.05438057,120.8,120.77,0.05415092]
[1741624747666,8.2826,120.78,120.77,0.05415092]
[1741624747859,35.6148847,120.8,120.71,4.1884]
[1741624748062,35.56050413,120.78,120.7,39.6]
[1741624748262,8.2883,120.7,120.67,39.6]
[1741624748564,35.56050413,120.76,120.67,39.6]
[1741624749068,0.05387318,120.73,120.7,0.05452445]
[1741624749464,8.2874,120.71,120.7,0.05452445]
[1741624750369,8.2888,120.69,120.68,228.24344928]
[1741624751271,8.2888,120.69,120.68,25.19748261]
[1741624751468,47.8688,120.69,120.68,9.24548261]
[1741624751874,47.8688,120.69,120.68,8.261e-05]
[1741624752064,47.8688,120.69,120.67,261.15931077]
[1741624752065,39.58,120.69,120.67,261.15931077]
[1741624752265,35.56050413,120.68,120.66,352.95365359]
[1741624752861,35.56050413,120.68,120.59,39.58]
[1741624753269,0.05708629,120.65,120.6,62.0]
[1741624754668,39.63708629,120.65,120.58,6.2615]
[1741624754873,50.70478824,120.65,120.58,6.2615]
[1741624755072,8.2954,120.6,120.58,6.2615]
[1741624755263,35.56050413,120.64,120.58,6.2615]
[1741624755464,8.2968,120.58,120.56,4.3585]
[1741624755768,0.06103789,120.6,120.56,4.3585]
[1741624756369,39.58,120.59,120.51,8.0739]
[1741624756574,35.56050413,120.58,120.51,8.0739]
[1741624757073,0.0582752,120.56,120.51,8.0739]
[1741624757272,8.2993,120.54,120.51,8.0739]
[1741624757471,0.0582752,120.56,120.51,70.0739]
[1741624757668,8.3561752,120.56,120.52,8.3002]
[1741624757872,0.0582752,120.56,120.51,70.0739]
[1741624758274,8.2988,120.55,120.51,70.0739]
[1741624758470,35.61877933,120.56,120.51,62.0]
[1741624758674,75.16050413,120.54,120.44,8.6268]
[1741624758875,8.303,120.49,120.44,4.366]
[1741624759070,75.16050413,120.54,120.44,8.6268]
[1741624759279,35.61895728,120.48,120.33,273.48]
[1741624759471,39.58,120.47,120.39,4.0801]
[1741624759866,0.05419926,120.44,120.4,39.77250413]
[1741624760072,8.3042,120.47,120.41,39.58]
[1741624760271,75.14050413,120.5,120.41,39.58]
[1741624760674,8.3047,120.46,120.41,39.58]
[1741624760976,75.14050413,120.5,120.41,39.58]
[1741624761166,39.58,120.5,120.41,47.8876]
[1741624761368,0.05976769,120.47,120.44,0.05419926]
[1741624761676,8.36376769,120.47,120.44,0.05419926]
[1741624762070,0.05976769,120.47,120.44,0.05419926]
[1741624762271,8.3053,120.45,120.44,0.05419926]
[1741624763275,8.3053,120.45,120.44,9.926e-05]
[1741624764173,47.9053,120.45,120.44,9.926e-05]
[1741624764577,8.3053,120.45,120.44,9.926e-05]
[1741624764971,8.3053,120.45,120.39,35.56050413]
[1741624764972,8.3078,120.42,120.39,35.56050413]
[1741624765173,8.3078,120.42,120.37,79.42130413]
[1741624765381,39.6,120.47,120.38,4.1632]
[1741624765982,39.6,120.47,120.39,62.0]
[1741624766182,0.05439424,120.44,120.39,62.0]
[1741624766480,8.3082,120.41,120.39,62.0]
[1741624766681,0.05439424,120.44,120.34,39.82980413]
[1741624766682,39.62,120.43,120.34,39.82980413]
[1741624766982,0.06354664,120.41,120.36,35.56050413]
[1741624767282,39.62,120.46,120.37,4.1632]
[1741624767485,0.05530661,120.4,120.37,4.1632]
[1741624767780,39.62,120.46,120.38,35.56050413]
[1741624767975,0.05737276,120.4,120.37,4.1632]
[1741624768174,39.62,120.46,120.37,4.1632]
[1741624768370,0.06008474,120.4,120.37,4.1632]
[1741624768580,39.62,120.46,120.37,4.1632]
[1741624769075,0.05331278,120.43,120.37,4.1632]
[1741624769675,0.05331278,120.43,120.38,62.0]
[1741624769985,8.3088,120.4,120.38,62.0]
[1741624770181,0.05331278,120.43,120.38,62.0]
[1741624770381,39.62,120.46,120.38,62.0]
[1741624770691,8.3085,120.41,120.38,62.0]
[1741624770987,0.05987089,120.42,120.37,4.1632]
[1741624771598,8.3091,120.4,120.37,4.1632]
[1741624771886,0.05987089,120.42,120.37,4.1632]
[1741624772676,8.3092,120.4,120.37,4.1632]
[1741624772981,0.05987089,120.42,120.37,4.1632]
[1741624774183,8.3087,120.41,120.37,12.4738]
[1741624774484,0.05987089,120.42,120.37,4.1632]
[1741624775280,8.3091,120.4,120.37,12.4738]
[1741624775477,8.3091,120.4,120.37,4.1632]
[1741624775682,0.05987089,120.42,120.37,4.1632]
[1741624776382,0.05987089,120.42,120.35,70.3118]
[1741624776782,0.05987089,120.42,120.36,8.3113]
[1741624776983,0.05987089,120.42,120.35,62.0]
[1741624777677,39.67987089,120.42,120.35,62.0]
[1741624777882,8.3086,120.41,120.37,8.3104]
[1741624778083,39.67987089,120.42,120.35,62.0]
[1741624778483,0.05939843,120.4,120.38,8.3096]
[1741624779086,0.05939843,120.4,120.36,35.56050413]
[1741624779087,0.05939843,120.4,120.37,8.3106]
[1741624779282,0.05939843,120.4,120.35,62.0]
[1741624779482,8.3098,120.39,120.35,62.0]
[1741624779778,8.3098,120.39,120.36,8.3112]
[1741624780184,0.05939843,120.4,120.35,62.0]
[1741624780784,8.3098,120.39,120.35,62.0]
[1741624780989,0.05939843,120.4,120.36,35.56050413]
[1741624781295,0.05939843,120.4,120.35,62.0]
[1741624781887,8.36819843,120.4,120.37,8.3102]
[1741624782090,0.05939843,120.4,120.35,62.0]
[1741624782694,0.05939843,120.4,120.34,43.8893]
[1741624783188,0.05939843,120.4,120.34,4.2693]
[1741624783384,8.3105,120.38,120.35,8.3121]
[1741624783781,0.05939843,120.4,120.35,8.3121]
[1741624783981,8.3102,120.38,120.35,8.3121]
[1741624784182,39.62,120.38,120.34,4.2693]
[1741624784388,39.62,120.38,120.32,3.9949]
[1741624784589,39.62,120.38,120.32,39.55540413]
[1741624784786,0.05713497,120.36,120.33,8.3132]
[1741624784984,8.36873497,120.36,120.32,39.55540413]
[1741624785183,0.05713497,120.36,120.32,3.9949]
[1741624786294,8.3136,120.33,120.32,3.9949]
[1741624786588,0.05713497,120.36,120.28,35.56050413]
[1741624786788,39.62,120.38,120.29,12.0288]
[1741624787188,0.05433508,120.33,120.29,12.0288]
[1741624787793,8.3144,120.32,120.29,12.0288]
[1741624790193,0.05433508,120.33,120.29,12.0288]
[1741624790693,0.05433508,120.33,120.25,47.9187]
[1741624790892,0.05433508,120.33,120.26,39.56210413]
[1741624791093,39.6,120.34,120.26,39.56210413]
[1741624791287,0.05722044,120.3,120.27,8.3172]
[1741624791491,0.05722044,120.3,120.26,39.56210413]
[1741624791692,39.6,120.34,120.26,39.56210413]
[1741624791990,39.6,120.34,120.27,8.3173]
[1741624792297,39.6,120.34,120.26,39.56210413]
[1741624792895,0.06283693,120.31,120.29,0.05435932]
[1741624793997,0.06283693,120.31,120.29,8.37055932]
[1741624794206,39.6,120.37,120.29,0.05435932]
[1741624794397,39.6,120.37,120.3,8.1954]
[1741624794701,39.6,120.37,120.3,16.5104]
[1741624795001,8.3126,120.35,120.3,43.75590413]
[1741624795189,75.16050413,120.4,120.3,8.1954]
[1741624795393,0.05436959,120.34,120.31,0.05650354]
[1741624795593,8.3134,120.34,120.3,8.1954]
[1741624795797,11.06770195,120.37,120.31,35.6143953]
[1741624795993,11.06770195,120.37,120.32,39.6]
[1741624797002,0.06362694,120.36,120.33,35.56050413]
[1741624797196,0.06362694,120.36,120.32,39.6]
[1741624797401,0.06362694,120.36,120.33,0.05538884]
[1741624798495,0.06362694,120.36,120.34,8.3125]
[1741624798800,0.06362694,120.36,120.33,0.05538884]
[1741624799001,8.37552694,120.36,120.33,8.36858884]
[1741624799200,0.06362694,120.36,120.33,0.05538884]
[1741624799595,0.06362694,120.36,120.34,8.3123]
[1741624799797,121.74472145,120.38,120.33,0.05538884]
[1741624799997,130.05492145,120.38,120.33,0.05538884]
[1741624800198,121.74472145,120.38,120.33,0.05538884]
[1741624800400,8.3116,120.36,120.33,0.05538884]
[1741624800598,121.74472145,120.38,120.33,0.05538884]
[1741624801098,0.06220585,120.37,120.33,0.05538884]